fUST/lending_fUST_20260506
["ID","MTS","AMOUNT","RATE_DAILY","PERIOD"]
[421731708,1778075440000,-501.57117087,0.00010958,2]
[421731699,1778075440000,-806.05,0.00010958,2]
[421731700,1778075440000,-529.22269963,0.00010958,2]
[421731701,1778075440000,-943.31,0.00010958,2]
[421731703,1778075440000,-501.35544191,0.00010958,2]
[421731702,1778075440000,-501.40581482,0.00010958,2]
[421731705,1778075440000,-500.0,0.00010958,2]
[421731704,1778075440000,-500.0,0.00010958,2]
[421731707,1778075440000,-500.0,0.00010958,2]
[421731706,1778075440000,-500.0,0.00010958,2]
[421731709,1778075440000,-500.0,0.00010958,2]
[421731710,1778075440000,-500.0,0.00010958,2]
[421731720,1778075440000,-500.0,0.00010958,2]
[421731721,1778075440000,-2134.89,0.00010958,2]
[421731713,1778075440000,-1134.85,0.00010958,2]
[421731716,1778075440000,-500.0,0.00010958,2]
[421731712,1778075440000,-500.0,0.00010958,2]
[421731711,1778075440000,-574.27,0.00010958,2]
[421731717,1778075440000,-1039.71,0.00010958,2]
[421731718,1778075440000,-809.35,0.00010958,2]
[421731719,1778075440000,-2653.48,0.00010958,2]
[421731715,1778075440000,-1102.41,0.00010958,2]
[421731714,1778075440000,-1014.15,0.00010958,2]
[421731723,1778075440000,-500.0,0.00010958,2]
[421731732,1778075440000,-500.0,0.00010958,2]
[421731763,1778075440000,-500.0,0.00010958,2]
[421731852,1778075440000,-500.0,0.00011232,2]
[421731757,1778075440000,-500.0,0.00010958,2]
[421731808,1778075440000,-500.0,0.00011232,2]
[421731811,1778075440000,-500.0,0.00011232,2]
[421731813,1778075440000,-500.0,0.00011232,2]
[421731817,1778075440000,-425.7229637,0.00011232,2]
[421731819,1778075440000,-500.0,0.00011232,2]
[421731821,1778075440000,-500.0,0.00011232,2]
[421731823,1778075440000,-500.0,0.00011232,2]
[421731815,1778075440000,-1002.8,0.00011232,2]
[421731835,1778075440000,-930.18,0.00011232,2]
[421731827,1778075440000,-500.0,0.00011232,2]
[421731825,1778075440000,-500.0,0.00011232,2]
[421731837,1778075440000,-500.0,0.00011232,2]
[421731839,1778075440000,-653.36,0.00011232,2]
[421731831,1778075440000,-500.0,0.00011232,2]
[421731829,1778075440000,-500.96,0.00011232,2]
[421731833,1778075440000,-500.0,0.00011232,2]
[421731856,1778075440000,-500.0,0.00011232,2]
[421731854,1778075440000,-500.0,0.00011232,2]
[421731841,1778075440000,-829.18,0.00011232,2]
[421731858,1778075440000,-500.0,0.00011232,2]
[421731860,1778075440000,-688.79,0.00011232,2]
[421731845,1778075440000,-500.0,0.00011232,2]
[421731843,1778075440000,-1052.79,0.00011232,2]
[421731847,1778075440000,-500.0,0.00011232,2]
[421731850,1778075440000,-833.34,0.00011232,2]
[421731862,1778075440000,-870.29,0.00011232,2]
[421731758,1778075440000,-3757.9,0.00010958,2]
[421731800,1778075440000,-564.8,0.00011232,2]
[421731806,1778075440000,-500.0,0.00011232,2]
[421731848,1778075440000,-500.0,0.00011232,2]
[421731809,1778075440000,-2346.08296018,0.00011232,2]
[421731796,1778075440000,-666.20941942,0.00011232,2]
[421731760,1778075440000,-1790.11,0.00010958,2]
[421731761,1778075440000,-3487.18,0.00010958,2]
[421731764,1778075440000,-501.39034763,0.00010958,2]
[421731765,1778075440000,-178.65196947,0.00010958,2]
[421731767,1778075440000,-500.0,0.00010958,2]
[421731766,1778075440000,-3199.59,0.00010958,2]
[421731768,1778075440000,-2336.33,0.00010958,2]
[421731770,1778075440000,-154.2898406,0.00010959,2]
[421731778,1778075440000,-16981.1422569,0.00011232,2]
[421731780,1778075440000,-1486.7408,0.00011232,2]
[421731782,1778075440000,-500.0,0.00011232,2]
[421731786,1778075440000,-587.10784789,0.00011232,2]
[421731784,1778075440000,-500.0,0.00011232,2]
[421731759,1778075440000,-958.52,0.00010958,2]
[421731774,1778075440000,-496.02546693,0.00011232,2]
[421731802,1778075440000,-500.0,0.00011232,2]
[421731804,1778075440000,-500.0,0.00011232,2]
[421731798,1778075440000,-2662.17283999,0.00011232,2]
[421731794,1778075440000,-500.0,0.00011232,2]
[421731769,1778075440000,-500.0,0.00010959,2]
[421731790,1778075440000,-500.0,0.00011232,2]
[421731792,1778075440000,-500.0,0.00011232,2]
[421731776,1778075440000,-4459.76497315,0.00011232,2]
[421731775,1778075440000,-1984.10186771,0.00011232,2]
[421731773,1778075440000,-420.0,0.00011108,2]
[421731771,1778075440000,-442.0,0.00011104,2]
[421731772,1778075440000,-185.0,0.00011104,2]
[421731788,1778075440000,-500.0,0.00011232,2]
[421731932,1778075441000,-619.93,0.00011232,2]
[421731928,1778075441000,-754.54,0.00011232,2]
[421731930,1778075441000,-805.24,0.00011232,2]
[421731926,1778075441000,-505.7,0.00011232,2]
[421731924,1778075441000,-999.14,0.00011232,2]
[421731920,1778075441000,-1481.94,0.00011232,2]
[421731916,1778075441000,-500.0,0.00011232,2]
[421731922,1778075441000,-666.36,0.00011232,2]
[421731914,1778075441000,-500.0,0.00011232,2]
[421731912,1778075441000,-1250.58,0.00011232,2]
[421731918,1778075441000,-500.0,0.00011232,2]
[421731934,1778075441000,-1503.85,0.00011232,2]
[421731938,1778075441000,-815.7,0.00011232,2]
[421731949,1778075441000,-1052.67,0.00011232,2]
[421731947,1778075441000,-1939.51,0.00011232,2]
[421731942,1778075441000,-2036.91,0.00011232,2]
[421731951,1778075441000,-192.96817771,0.00011232,2]
[421731936,1778075441000,-4120.15,0.00011232,2]
[421731940,1778075441000,-500.0,0.00011232,2]
[421731943,1778075441000,-1102.74,0.00011232,2]
[421731956,1778075441000,-1790.11,0.00011232,2]
[421731958,1778075441000,-3487.18,0.00011232,2]
[421731953,1778075441000,-3757.9,0.00011232,2]
[421731911,1778075441000,-1732.75,0.00011232,2]
[421731954,1778075441000,-958.52,0.00011232,2]
[421731945,1778075441000,-500.0,0.00011232,2]
[421731909,1778075441000,-500.0,0.00011232,2]
[421731889,1778075441000,-1039.71,0.00011232,2]
[421731905,1778075441000,-766.41,0.00011232,2]
[421731972,1778075441000,-200.0,0.00011281,2]
[421731865,1778075441000,-806.05,0.00011232,2]
[421731863,1778075441000,-1167.79,0.00011232,2]
[421731867,1778075441000,-943.31,0.00011232,2]
[421731873,1778075441000,-500.0,0.00011232,2]
[421731875,1778075441000,-500.0,0.00011232,2]
[421731877,1778075441000,-314.4340479,0.00011232,2]
[421731871,1778075441000,-500.0,0.00011232,2]
[421731869,1778075441000,-500.0,0.00011232,2]
[421731879,1778075441000,-574.27,0.00011232,2]
[421731884,1778075441000,-1014.15,0.00011232,2]
[421731881,1778075441000,-500.0,0.00011232,2]
[421731907,1778075441000,-3295.12,0.00011232,2]
[421731886,1778075441000,-1102.41,0.00011232,2]
[421731888,1778075441000,-500.0,0.00011232,2]
[421731890,1778075441000,-809.35,0.00011232,2]
[421731896,1778075441000,-2954.45,0.00011232,2]
[421731895,1778075441000,-500.0,0.00011232,2]
[421731897,1778075441000,-916.16,0.00011232,2]
[421731899,1778075441000,-500.0,0.00011232,2]
[421731901,1778075441000,-16320.96,0.00011232,2]
[421731891,1778075441000,-2653.48,0.00011232,2]
[421731892,1778075441000,-500.0,0.00011232,2]
[421731893,1778075441000,-2134.89,0.00011232,2]
[421731903,1778075441000,-500.0,0.00011232,2]
[421731894,1778075441000,-596.63,0.00011232,2]
[421731882,1778075441000,-1134.85,0.00011232,2]
[421731974,1778075441000,-200.0,0.00011281,2]
[421731964,1778075441000,-500.0,0.00011232,2]
[421731976,1778075441000,-200.0,0.00011281,2]
[421732037,1778075441000,-551.81513906,0.00011506,2]
[421732035,1778075441000,-930.18,0.00011506,2]
[421732033,1778075441000,-500.0,0.00011506,2]
[421732039,1778075441000,-653.36,0.00011506,2]
[421732049,1778075441000,-500.0,0.00011506,2]
[421732051,1778075441000,-833.34,0.00011506,2]
[421732053,1778075441000,-500.0,0.00011506,2]
[421732043,1778075441000,-1052.79,0.00011506,2]
[421732055,1778075441000,-500.0,0.00011506,2]
[421732041,1778075441000,-829.18,0.00011506,2]
[421732045,1778075441000,-500.0,0.00011506,2]
[421732057,1778075441000,-433.26402668,0.00011506,2]
[421732031,1778075441000,-500.0,0.00011506,2]
[421732047,1778075441000,-640.52356281,0.00011506,2]
[421732059,1778075441000,-500.0,0.00011506,2]
[421732063,1778075441000,-870.29,0.00011506,2]
[421732065,1778075441000,-1167.79,0.00011506,2]
[421732075,1778075441000,-943.31,0.00011506,2]
[421732080,1778075441000,-500.0,0.00011506,2]
[421731978,1778075441000,-200.0,0.00011281,2]
[421732087,1778075441000,-500.0,0.00011506,2]
[421732094,1778075441000,-1134.85,0.00011506,2]
[421732089,1778075441000,-574.27,0.00011506,2]
[421732091,1778075441000,-500.0,0.00011506,2]
[421732085,1778075441000,-500.0,0.00011506,2]
[421732083,1778075441000,-500.0,0.00011506,2]
[421732061,1778075441000,-688.79,0.00011506,2]
[421732020,1778075441000,-500.0,0.00011506,2]
[421732067,1778075441000,-806.05,0.00011506,2]
[421732027,1778075441000,-500.0,0.00011506,2]
[421732029,1778075441000,-500.96,0.00011506,2]
[421731962,1778075441000,-3199.59,0.00011232,2]
[421731960,1778075441000,-500.0,0.00011232,2]
[421731980,1778075441000,-155.0,0.00011395,2]
[421731982,1778075441000,-200.0,0.00011442,2]
[421731966,1778075441000,-2336.33,0.00011232,2]
[421731968,1778075441000,-150.337,0.00011235,2]
[421731988,1778075441000,-939.634,0.00011506,2]
[421731986,1778075441000,-611.7309,0.00011506,2]
[421731994,1778075441000,-500.0,0.00011506,2]
[421731996,1778075441000,-500.0,0.00011506,2]
[421731990,1778075441000,-500.0,0.00011506,2]
[421731992,1778075441000,-500.0,0.00011506,2]
[421731970,1778075441000,-200.0,0.00011281,2]
[421731998,1778075441000,-500.0,0.00011506,2]
[421732000,1778075441000,-500.0,0.00011506,2]
[421732016,1778075441000,-1002.8,0.00011506,2]
[421732018,1778075441000,-500.0,0.00011506,2]
[421732014,1778075441000,-500.0,0.00011506,2]
[421732022,1778075441000,-500.0,0.00011506,2]
[421732025,1778075441000,-500.0,0.00011506,2]
[421732006,1778075441000,-500.0,0.00011506,2]
[421732008,1778075441000,-500.0,0.00011506,2]
[421732010,1778075441000,-500.0,0.00011506,2]
[421732002,1778075441000,-564.8,0.00011506,2]
[421732004,1778075441000,-500.0,0.00011506,2]
[421732012,1778075441000,-500.0,0.00011506,2]
[421732158,1778075442000,-505.7,0.00011506,2]
[421732162,1778075442000,-805.24,0.00011506,2]
[421732165,1778075442000,-619.93,0.00011506,2]
[421732167,1778075442000,-1503.85,0.00011506,2]
[421732151,1778075442000,-1481.94,0.00011506,2]
[421732155,1778075442000,-999.14,0.00011506,2]
[421732153,1778075442000,-666.36,0.00011506,2]
[421732172,1778075442000,-815.7,0.00011506,2]
[421732174,1778075442000,-500.0,0.00011506,2]
[421732170,1778075442000,-4120.15,0.00011506,2]
[421732189,1778075442000,-3757.9,0.00011506,2]
[421732177,1778075442000,-2036.91,0.00011506,2]
[421732192,1778075442000,-958.52,0.00011506,2]
[421732181,1778075442000,-500.0,0.00011506,2]
[421732186,1778075442000,-1052.67,0.00011506,2]
[421732183,1778075442000,-1939.51,0.00011506,2]
[421732194,1778075442000,-1790.11,0.00011506,2]
[421732196,1778075442000,-3487.18,0.00011506,2]
[421732160,1778075442000,-754.54,0.00011506,2]
[421732199,1778075442000,-500.0,0.00011506,2]
[421732179,1778075442000,-1102.74,0.00011506,2]
[421732148,1778075442000,-500.0,0.00011506,2]
[421732106,1778075442000,-809.35,0.00011506,2]
[421732146,1778075442000,-500.0,0.00011506,2]
[421732201,1778075442000,-3199.59,0.00011506,2]
[421732101,1778075442000,-500.0,0.00011506,2]
[421732097,1778075442000,-1014.15,0.00011506,2]
[421732099,1778075442000,-1102.41,0.00011506,2]
[421732117,1778075442000,-500.0,0.00011506,2]
[421732115,1778075442000,-596.63,0.00011506,2]
[421732103,1778075442000,-1039.71,0.00011506,2]
[421732119,1778075442000,-2954.45,0.00011506,2]
[421732121,1778075442000,-916.16,0.00011506,2]
[421732144,1778075442000,-500.0,0.00011506,2]
[421732108,1778075442000,-2653.48,0.00011506,2]
[421732112,1778075442000,-2134.89,0.00011506,2]
[421732124,1778075442000,-500.0,0.00011506,2]
[421732125,1778075442000,-16320.96,0.00011506,2]
[421732128,1778075442000,-500.0,0.00011506,2]
[421732130,1778075442000,-766.41,0.00011506,2]
[421732133,1778075442000,-3295.12,0.00011506,2]
[421732135,1778075442000,-500.0,0.00011506,2]
[421732141,1778075442000,-1250.58,0.00011506,2]
[421732138,1778075442000,-1732.75,0.00011506,2]
[421732110,1778075442000,-588.1412325,0.00011506,2]
[421732203,1778075442000,-500.0,0.00011506,2]
[421732243,1778075442000,-500.0,0.0001178,2]
[421732206,1778075442000,-2336.33,0.00011506,2]
[421732258,1778075442000,-500.0,0.0001178,2]
[421732265,1778075442000,-500.0,0.0001178,2]
[421732275,1778075442000,-500.0,0.0001178,2]
[421732277,1778075442000,-500.0,0.0001178,2]
[421732269,1778075442000,-653.36,0.0001178,2]
[421732267,1778075442000,-930.18,0.0001178,2]
[421732281,1778075442000,-500.0,0.0001178,2]
[421732273,1778075442000,-1052.79,0.0001178,2]
[421732279,1778075442000,-833.34,0.0001178,2]
[421732261,1778075442000,-500.96,0.0001178,2]
[421732271,1778075442000,-829.18,0.0001178,2]
[421732297,1778075442000,-500.0,0.0001178,2]
[421732286,1778075442000,-500.0,0.0001178,2]
[421732292,1778075442000,-1167.79,0.0001178,2]
[421732288,1778075442000,-688.79,0.0001178,2]
[421732304,1778075442000,-500.0,0.0001178,2]
[421732294,1778075442000,-806.05,0.0001178,2]
[421732302,1778075442000,-500.0,0.0001178,2]
[421732296,1778075442000,-943.31,0.0001178,2]
[421732213,1778075442000,-720.0,0.00011619,2]
[421732284,1778075442000,-500.0,0.0001178,2]
[421732263,1778075442000,-500.0,0.0001178,2]
[421732290,1778075442000,-870.29,0.0001178,2]
[421732249,1778075442000,-500.0,0.0001178,2]
[421732217,1778075442000,-611.7309,0.0001178,2]
[421732256,1778075442000,-500.0,0.0001178,2]
[421732215,1778075442000,-13110.47288236,0.00011679,2]
[421732208,1778075442000,-839.91915987,0.00011544,2]
[421732210,1778075442000,-155.0,0.00011614,2]
[421732231,1778075442000,-500.0,0.0001178,2]
[421732224,1778075442000,-500.0,0.0001178,2]
[421732233,1778075442000,-500.0,0.0001178,2]
[421732238,1778075442000,-564.8,0.0001178,2]
[421732226,1778075442000,-500.0,0.0001178,2]
[421732219,1778075442000,-939.634,0.0001178,2]
[421732236,1778075442000,-500.0,0.0001178,2]
[421732240,1778075442000,-500.0,0.0001178,2]
[421732241,1778075442000,-500.0,0.0001178,2]
[421732299,1778075442000,-500.0,0.0001178,2]
[421732246,1778075442000,-500.0,0.0001178,2]
[421732244,1778075442000,-500.0,0.0001178,2]
[421732248,1778075442000,-1002.8,0.0001178,2]
[421732245,1778075442000,-500.0,0.0001178,2]
[421732228,1778075442000,-500.0,0.0001178,2]
[421732252,1778075442000,-500.0,0.0001178,2]
[421732254,1778075442000,-500.0,0.0001178,2]
[421732406,1778075443000,-500.0,0.0001178,2]
[421732394,1778075443000,-1939.51,0.0001178,2]
[421732392,1778075443000,-500.0,0.0001178,2]
[421732390,1778075443000,-1102.74,0.0001178,2]
[421732388,1778075443000,-2036.91,0.0001178,2]
[421732382,1778075443000,-815.7,0.0001178,2]
[421732384,1778075443000,-500.0,0.0001178,2]
[421732378,1778075443000,-1503.85,0.0001178,2]
[421732380,1778075443000,-4120.15,0.0001178,2]
[421732396,1778075443000,-1052.67,0.0001178,2]
[421732376,1778075443000,-619.93,0.0001178,2]
[421732386,1778075443000,-151.0,0.0001178,2]
[421732398,1778075443000,-3757.9,0.0001178,2]
[421732410,1778075443000,-500.0,0.0001178,2]
[421732404,1778075443000,-3487.18,0.0001178,2]
[421732400,1778075443000,-958.52,0.0001178,2]
[421732416,1778075443000,-500.0,0.00011799,2]
[421732414,1778075443000,-500.0,0.00011799,2]
[421732420,1778075443000,-500.0,0.00011799,2]
[421732418,1778075443000,-500.0,0.00011799,2]
[421732412,1778075443000,-2336.33,0.0001178,2]
[421732408,1778075443000,-3199.59,0.0001178,2]
[421732423,1778075443000,-500.0,0.00011799,2]
[421732435,1778075443000,-155.0,0.00011834,2]
[421732437,1778075443000,-200.0,0.00011894,2]
[421732374,1778075443000,-805.24,0.0001178,2]
[421732402,1778075443000,-1790.11,0.0001178,2]
[421732372,1778075443000,-754.54,0.0001178,2]
[421732326,1778075443000,-1039.71,0.0001178,2]
[421732370,1778075443000,-505.7,0.0001178,2]
[421732314,1778075443000,-574.27,0.0001178,2]
[421732316,1778075443000,-500.0,0.0001178,2]
[421732320,1778075443000,-1014.15,0.0001178,2]
[421732318,1778075443000,-1134.85,0.0001178,2]
[421732334,1778075443000,-596.63,0.0001178,2]
[421732322,1778075443000,-1102.41,0.0001178,2]
[421732439,1778075443000,-1300.7,0.000119,2]
[421732328,1778075443000,-809.35,0.0001178,2]
[421732331,1778075443000,-2653.48,0.0001178,2]
[421732337,1778075443000,-500.0,0.0001178,2]
[421732339,1778075443000,-2954.45,0.0001178,2]
[421732341,1778075443000,-916.16,0.0001178,2]
[421732332,1778075443000,-2134.89,0.0001178,2]
[421732342,1778075443000,-500.0,0.0001178,2]
[421732324,1778075443000,-500.0,0.0001178,2]
[421732345,1778075443000,-16320.96,0.0001178,2]
[421732346,1778075443000,-500.0,0.0001178,2]
[421732348,1778075443000,-766.41,0.0001178,2]
[421732356,1778075443000,-1250.58,0.0001178,2]
[421732360,1778075443000,-500.0,0.0001178,2]
[421732358,1778075443000,-500.0,0.0001178,2]
[421732362,1778075443000,-500.0,0.0001178,2]
[421732351,1778075443000,-3295.12,0.0001178,2]
[421732364,1778075443000,-1481.94,0.0001178,2]
[421732354,1778075443000,-1732.75,0.0001178,2]
[421732352,1778075443000,-300.0,0.0001178,2]
[421732366,1778075443000,-666.36,0.0001178,2]
[421732368,1778075443000,-999.14,0.0001178,2]
[421732426,1778075443000,-161.57016804,0.000118,2]
[421732447,1778075443000,-1651.41441828,0.00012,7]
[421732443,1778075443000,-12128.64740246,0.00012,7]
[421732496,1778075443000,-500.0,0.00012054,2]
[421732512,1778075443000,-500.0,0.00012054,2]
[421732500,1778075443000,-500.0,0.00012054,2]
[421732502,1778075443000,-1002.8,0.00012054,2]
[421732514,1778075443000,-500.96,0.00012054,2]
[421732518,1778075443000,-500.0,0.00012054,2]
[421732516,1778075443000,-500.0,0.00012054,2]
[421732529,1778075443000,-500.0,0.00012054,2]
[421732531,1778075443000,-327.02246153,0.00012054,2]
[421732533,1778075443000,-833.34,0.00012054,2]
[421732441,1778075443000,-164.0298,0.00011917,2]
[421732520,1778075443000,-930.18,0.00012054,2]
[421732495,1778075443000,-500.0,0.00012054,2]
[421732523,1778075443000,-653.36,0.00012054,2]
[421732525,1778075443000,-829.18,0.00012054,2]
[421732527,1778075443000,-1052.79,0.00012054,2]
[421732535,1778075443000,-500.0,0.00012054,2]
[421732541,1778075443000,-688.79,0.00012054,2]
[421732543,1778075443000,-870.29,0.00012054,2]
[421732545,1778075443000,-1167.79,0.00012054,2]
[421732547,1778075443000,-806.05,0.00012054,2]
[421732551,1778075443000,-500.0,0.00012054,2]
[421732552,1778075443000,-500.0,0.00012054,2]
[421732555,1778075443000,-500.0,0.00012054,2]
[421732556,1778075443000,-500.0,0.00012054,2]
[421732549,1778075443000,-943.31,0.00012054,2]
[421732539,1778075443000,-500.0,0.00012054,2]
[421732498,1778075443000,-500.0,0.00012054,2]
[421732537,1778075443000,-166.59775423,0.00012054,2]
[421732508,1778075443000,-500.0,0.00012054,2]
[421732510,1778075443000,-500.0,0.00012054,2]
[421732425,1778075443000,-805.67231814,0.00011799,2]
[421732431,1778075443000,-148583.99506988,0.000118,5]
[421732432,1778075443000,-151.0,0.000118,2]
[421732451,1778075443000,-500.0,0.00010958,2]
[421732457,1778075443000,-304.82136039,0.00012,2]
[421732453,1778075443000,-22830.30777935,0.00012,7]
[421732466,1778075443000,-226.4206235,0.00012,2]
[421732455,1778075443000,-262.83374165,0.00012,2]
[421732460,1778075443000,-300.15629103,0.00012,2]
[421732468,1778075443000,-354.48628035,0.00012002,2]
[421732462,1778075443000,-207.40195762,0.00012,2]
[421732464,1778075443000,-152.52324816,0.00012,2]
[421732429,1778075443000,-160.0,0.000118,2]
[421732470,1778075443000,-155.0,0.00012053,2]
[421732472,1778075443000,-611.7309,0.00012054,2]
[421732504,1778075443000,-500.0,0.00012054,2]
[421732491,1778075443000,-500.0,0.00012054,2]
[421732493,1778075443000,-500.0,0.00012054,2]
[421732485,1778075443000,-500.0,0.00012054,2]
[421732489,1778075443000,-564.8,0.00012054,2]
[421732506,1778075443000,-500.0,0.00012054,2]
[421732487,1778075443000,-526.23790282,0.00012054,2]
[421732478,1778075443000,-500.0,0.00012054,2]
[421732483,1778075443000,-500.0,0.00012054,2]
[421732474,1778075443000,-939.634,0.00012054,2]
[421732476,1778075443000,-500.0,0.00012054,2]
[421732480,1778075443000,-500.0,0.00012054,2]
[421732595,1778075444000,-766.41,0.00012054,2]
[421732579,1778075444000,-596.63,0.00012054,2]
[421732581,1778075444000,-500.0,0.00012054,2]
[421732590,1778075444000,-16320.96,0.00012054,2]
[421732612,1778075444000,-666.36,0.00012054,2]
[421732610,1778075444000,-1481.94,0.00012054,2]
[421732614,1778075444000,-999.14,0.00012054,2]
[421732601,1778075444000,-1250.58,0.00012054,2]
[421732616,1778075444000,-505.7,0.00012054,2]
[421732593,1778075444000,-500.0,0.00012054,2]
[421732597,1778075444000,-3295.12,0.00012054,2]
[421732586,1778075444000,-916.16,0.00012054,2]
[421732564,1778075444000,-1014.15,0.00012054,2]
[421732583,1778075444000,-2954.45,0.00012054,2]
[421732577,1778075444000,-2134.89,0.00012054,2]
[421732575,1778075444000,-2653.48,0.00012054,2]
[421732567,1778075444000,-1102.41,0.00012054,2]
[421732561,1778075444000,-500.0,0.00012054,2]
[421732569,1778075444000,-498.64717757,0.00012054,2]
[421732573,1778075444000,-809.35,0.00012054,2]
[421732571,1778075444000,-1039.71,0.00012054,2]
[421732563,1778075444000,-1134.85,0.00012054,2]
[421732558,1778075444000,-574.27,0.00012054,2]
[421732599,1778075444000,-1732.75,0.00012054,2]
[421732588,1778075444000,-500.0,0.00012054,2]
[421732618,1778075444000,-754.54,0.00012054,2]
[421732652,1778075444000,-3199.59,0.00012054,2]
[421732603,1778075444000,-500.0,0.00012054,2]
[421732608,1778075444000,-500.0,0.00012054,2]
[421732695,1778075444000,-1541.35527737,0.00010054,2]
[421732675,1778075444000,-851.11917809,0.00010054,2]
[421732660,1778075444000,-10460.41134705,0.000121,10]
[421732698,1778075444000,-1807.23285433,0.00010054,2]
[421732662,1778075444000,-3182.17446743,0.000121,10]
[421732658,1778075444000,-312.0,0.00012055,3]
[421732656,1778075444000,-2336.33,0.00012054,2]
[421732654,1778075444000,-500.0,0.00012054,2]
[421732649,1778075444000,-500.0,0.00012054,2]
[421732645,1778075444000,-1790.11,0.00012054,2]
[421732641,1778075444000,-3757.9,0.00012054,2]
[421732647,1778075444000,-3487.18,0.00012054,2]
[421732643,1778075444000,-958.52,0.00012054,2]
[421732606,1778075444000,-500.0,0.00012054,2]
[421732620,1778075444000,-805.24,0.00012054,2]
[421732622,1778075444000,-619.93,0.00012054,2]
[421732624,1778075444000,-1503.85,0.00012054,2]
[421732639,1778075444000,-1052.67,0.00012054,2]
[421732629,1778075444000,-500.0,0.00012054,2]
[421732626,1778075444000,-4120.15,0.00012054,2]
[421732635,1778075444000,-500.0,0.00012054,2]
[421732633,1778075444000,-1102.74,0.00012054,2]
[421732637,1778075444000,-1939.51,0.00012054,2]
[421732631,1778075444000,-2036.91,0.00012054,2]
[421732627,1778075444000,-815.7,0.00012054,2]
[421732907,1778075446000,-559.94610658,0.00011544,2]
[421732901,1778075446000,-500.0,0.00011232,2]
[421732903,1778075446000,-387.9032627,0.00011232,2]
[421732905,1778075446000,-500.0,0.00011506,2]
[421732909,1778075446000,-500.0,0.0001178,2]
[421732896,1778075446000,-800.29269021,0.00010054,2]
[421732899,1778075446000,-500.0,0.00010958,2]
[421732911,1778075446000,-365.66016368,0.00012054,2]
[421732916,1778075446000,-3324.30488631,0.000121,10]
[421732918,1778075446000,-10487.51070975,0.000121,10]
[421732913,1778075446000,-134.33983632,0.00012054,2]
[421733065,1778076035000,-419.91550361,8.619e-05,2]
[421733068,1778076328000,1767.07218853,7.6e-05,2]
[421733072,1778076418000,5000.0,8.01e-05,2]
[421733076,1778076439000,5000.0,8.01e-05,2]
[421733077,1778076461000,2790.53323653,8.01e-05,2]
[421733078,1778076476000,1078.47346362,8.01e-05,2]
[421733079,1778076492000,5000.0,8.01e-05,2]
[421733080,1778076514000,2438.5719215,8.01e-05,2]
[421733253,1778076640000,-300.0,8.703e-05,2]
[421733252,1778076640000,-300.0,8.703e-05,2]
[421733244,1778076640000,-300.0,8.703e-05,2]
[421733248,1778076640000,-300.0,8.703e-05,2]
[421733250,1778076640000,-300.0,8.703e-05,2]
[421733247,1778076640000,-300.0,8.703e-05,2]
[421733255,1778076640000,-600.0,8.876e-05,2]
[421733236,1778076640000,-292.74894096,8.156e-05,2]
[421733245,1778076640000,-300.0,8.703e-05,2]
[421733241,1778076640000,-300.0,8.703e-05,2]